bitfinex/quotes_SOLUSD_20240906
["timestamp","ask_amount","ask_price","bid_price","bid_amount"]
[1725651733970,8.0431,124.33,124.24,15.0]
[1725651733971,8.0448,124.31,124.25,20.1199]
[1725651734289,20.0,124.36,124.27,20.1168]
[1725651734582,8.0431,124.33,124.28,9.65465312]
[1725651735084,20.1035,124.36,124.27,28.1636]
[1725651735260,21.59499412,124.35,124.27,20.1168]
[1725651735461,20.0,124.35,124.27,28.1637]
[1725651735683,20.0,124.35,124.28,9.65498917]
[1725651735884,20.0,124.35,124.29,8.0455]
[1725651736084,8.042,124.35,124.3,9.65341936]
[1725651736282,60.2952,124.39,124.3,9.65341936]
[1725651736283,8.041,124.37,124.31,29.7398]
[1725651736490,20.099,124.39,124.31,21.6957]
[1725651736785,8.0425,124.34,124.31,21.6957]
[1725651737795,21.69399412,124.39,124.31,41.8061]
[1725651737796,20.099,124.39,124.31,41.8061]
[1725651737968,8.0413,124.36,124.31,49.8503]
[1725651738172,20.099,124.39,124.32,8.0435]
[1725651738173,8.0407,124.37,124.32,8.0435]
[1725651738378,8.0407,124.37,124.32,9.65160008]
[1725651738775,1.39479748,124.38,124.33,20.1069]
[1725651738969,1.39479748,124.38,124.34,8.0424]
[1725651739594,1.39479748,124.38,124.33,21.7147678]
[1725651739595,9.43469748,124.38,124.33,29.7576678]
[1725651739775,9.43469748,124.38,124.33,28.1498]
[1725651740292,8.0408,124.37,124.33,20.1069]
[1725651740796,9.43479748,124.38,124.33,28.1496]
[1725651741092,9.43489748,124.38,124.33,28.1496]
[1725651741293,1.39479748,124.38,124.35,8.0417]
[1725651741669,1.39479748,124.38,124.31,21.6957]
[1725651741969,8.0406,124.37,124.32,8.0436]
[1725651742981,8.0406,124.37,124.33,8.043]
[1725651743189,9.43479748,124.38,124.34,8.0424]
[1725651744092,1.39479748,124.38,124.32,37.37800658]
[1725651744284,8.0358,124.45,124.4,8.0381]
[1725651744588,40.1656,124.49,124.4,8.0384]
[1725651744589,1.39400232,124.48,124.4,8.0384]
[1725651744802,1.39400232,124.48,124.34,6.17]
[1725651744803,1.59499412,124.47,124.34,6.17]
[1725651745008,20.0931,124.43,124.34,6.17]
[1725651745308,8.0379,124.42,124.36,8.0409]
[1725651745481,20.0868,124.46,124.38,8.0398]
[1725651745482,8.0365,124.44,124.38,8.0398]
[1725651745685,1.39400232,124.48,124.39,8.0392]
[1725651745877,8.0341,124.47,124.35,1.60703694]
[1725651746078,8.06349412,124.51,124.4,28.1347]
[1725651746079,8.0347,124.46,124.4,28.1347]
[1725651746482,1.59499412,124.49,124.36,20.1013]
[1725651746682,21.47399376,124.5,124.39,8.0391]
[1725651746683,1.59499412,124.48,124.39,8.0391]
[1725651747012,21.47399376,124.5,124.41,14.1786]
[1725651747013,8.0341,124.47,124.41,14.1786]
[1725651747210,8.0333,124.49,124.42,8.0371]
[1725651747386,8.0333,124.49,124.43,1.60671825]
[1725651747883,8.0334,124.48,124.43,16.1776]
[1725651748285,1.39316506,124.53,124.44,1.60663395]
[1725651748489,15.7205,124.56,124.43,16.1776]
[1725651748490,8.0316,124.51,124.45,21.69421733]
[1725651749107,8.0322,124.5,124.45,28.1231]
[1725651749392,8.0315,124.51,124.46,8.0345]
[1725651749702,20.072,124.56,124.45,20.0879]
[1725651749703,8.0308,124.52,124.47,8.034]
[1725651749916,8.0308,124.52,124.46,8.0345]
[1725651750482,1.39287977,124.54,124.43,16.1776]
[1725651750709,21.46807977,124.54,124.43,16.1776]
[1725651750889,8.0334,124.48,124.43,16.1776]
[1725651751092,8.0342,124.47,124.43,16.1776]
[1725651751796,8.0342,124.47,124.41,26.2344]
[1725651751797,8.0365,124.44,124.41,6.1408]
[1725651751991,8.0347,124.46,124.41,6.1408]
[1725651752193,28.0353,124.45,124.41,6.1408]
[1725651752694,8.036,124.44,124.39,8.0389]
[1725651752892,20.0,124.45,124.4,9.64560547]
[1725651753098,20.0,124.5,124.39,8.0391]
[1725651753299,1.59499412,124.49,124.39,8.0391]
[1725651753505,1.59499412,124.48,124.38,41.5522]
[1725651753709,1.59499412,124.48,124.38,21.4531]
[1725651753710,8.038,124.41,124.38,21.4531]
[1725651754294,8.038,124.41,124.35,20.104]
[1725651754295,86.76269412,124.48,124.35,20.104]
[1725651754502,20.0,124.47,124.35,20.104]
[1725651754712,20.0896,124.45,124.36,1.60773903]
[1725651754922,20.0,124.44,124.36,1.60773903]
[1725651755119,20.0,124.47,124.36,1.60773903]
[1725651755327,40.1677,124.48,124.4,8.0384]
[1725651755328,8.0351,124.46,124.4,8.0384]
[1725651755624,8.0351,124.46,124.41,9.6449989]
[1725651755792,8.0334,124.49,124.42,23.13339008]
[1725651755994,8.0334,124.49,124.43,8.036]
[1725651756315,8.0322,124.5,124.45,8.0353]
[1725651757706,1.39287977,124.54,124.45,8.0353]
[1725651757923,1.39287977,124.54,124.46,8.0345]
[1725651757924,8.0315,124.51,124.46,8.0345]
[1725651758310,8.0321,124.5,124.45,28.1224]
[1725651758724,8.0314,124.51,124.45,20.0872]
[1725651758919,8.0314,124.51,124.46,8.0344]
[1725651759304,2.98787389,124.54,124.45,28.1224]
[1725651759305,8.0322,124.5,124.45,28.1224]
[1725651760536,8.0303,124.53,124.48,8.0332]
[1725651761434,1.39287977,124.54,124.49,20.0812]
[1725651761614,9.42237977,124.54,124.49,28.1139]
[1725651762018,1.39287977,124.54,124.5,23.8173]
[1725651762433,270.29998794,124.64,124.52,8.0302]
[1725651762434,8.0276,124.57,124.52,8.0302]
[1725651762730,20.0631,124.61,124.53,8.0301]
[1725651762731,8.0271,124.58,124.53,8.0301]
[1725651762910,1.59499412,124.63,124.53,8.0301]
[1725651762911,20.0537,124.67,124.55,20.0713]
[1725651763110,1.3917391,124.66,124.55,1.60497285]
[1725651763324,8.0246,124.62,124.58,20.0671]
[1725651763916,8.0238,124.63,124.58,28.0937]
[1725651764112,8.0238,124.63,124.58,36.5789]
[1725651764539,8.0245,124.62,124.58,36.5789]
[1725651764709,8.0251,124.61,124.58,16.5118]
[1725651764917,20.0566,124.65,124.55,20.0713]
[1725651765126,8.0258,124.6,124.56,8.0282]
[1725651765332,8.0244,124.62,124.58,8.0266]
[1725651765724,8.0239,124.63,124.59,8.0263]
[1725651766043,20.0566,124.65,124.58,8.0267]
[1725651766044,8.0246,124.62,124.58,8.0267]
[1725651766219,8.0238,124.63,124.59,8.0262]
[1725651766417,8.0244,124.62,124.57,28.095]
[1725651767227,1.59499412,124.65,124.57,28.095]
[1725651767433,20.0,124.65,124.57,20.068]
[1725651767634,20.0,124.65,124.58,8.0269]
[1725651767635,8.0243,124.63,124.58,8.0269]
[1725651767836,8.0244,124.62,124.58,8.0269]
[1725651768640,8.0244,124.62,124.57,28.0954]
[1725651769133,8.0251,124.61,124.57,28.0954]
[1725651769646,28.0229,124.65,124.61,8.0249]
[1725651769852,8.0236,124.64,124.59,28.0909]
[1725651770029,8.0244,124.62,124.56,20.0694]
[1725651770341,21.59499412,124.63,124.54,16.5118]
[1725651770551,8.0267,124.59,124.55,8.0287]
[1725651770739,20.0,124.62,124.55,20.0711]
[1725651771081,8.0268,124.59,124.55,20.0711]
[1725651771455,40.1111,124.66,124.53,6.4478]
[1725651771456,16.26838794,124.97,124.8,8.0125]
[1725651771634,16.26838794,124.97,124.77,50.0]
[1725651771635,24.32838794,124.97,124.81,1.60168034]
[1725651771834,9.99998794,124.89,124.74,8.0164]
[1725651772041,32.39588794,124.91,124.75,9.61873133]
[1725651772351,8.0089,124.87,124.75,1.60273133]
[1725651772525,42.4112,124.91,124.77,20.0364]
[1725651772725,8.0089,124.86,124.77,29.65308939]
[1725651772927,42.4112,124.91,124.75,53.0154]
[1725651773122,8.0111,124.83,124.73,20.0419]
[1725651773647,8.0119,124.82,124.74,8.0165]
[1725651773852,8.0109,124.83,124.74,1.60256118]
[1725651774034,8.0116,124.82,124.74,9.61876118]
[1725651774228,8.0117,124.82,124.75,8.0157]
[1725651774442,8.0128,124.81,124.76,1.60273215]
[1725651774743,8.0141,124.78,124.69,8.0193]
[1725651774954,20.0243,124.85,124.7,45.0]
[1725651775343,8.0141,124.78,124.69,8.0193]
[1725651775546,20.0292,124.82,124.71,1.60280238]
[1725651775750,8.0147,124.78,124.71,1.60280238]
[1725651776138,8.0147,124.77,124.71,1.60280238]
[1725651776341,8.0143,124.78,124.71,1.60280238]
[1725651776646,8.0159,124.76,124.71,1.60280238]
[1725651776843,40.0405,124.88,124.72,50.0]
[1725651777158,8.0115,124.82,124.76,8.0153]
[1725651777456,8.0108,124.84,124.77,9.6165499]
[1725651777859,8.0109,124.83,124.78,45.0]
[1725651778035,8.0109,124.83,124.79,1.6018751]
[1725651778236,8.0102,124.84,124.8,1.60185564]
[1725651778758,8.0096,124.85,124.8,1.60185564]
[1725651778941,8.0096,124.85,124.8,46.60185564]
[1725651779142,8.0102,124.84,124.8,46.60185564]
[1725651779341,8.0102,124.84,124.8,1.60185564]
[1725651779933,8.0102,124.84,124.8,46.60185564]
[1725651780157,8.0097,124.85,124.8,46.60185564]
[1725651780857,8.009,124.86,124.8,46.60185564]
[1725651781047,8.0096,124.85,124.8,46.60185564]
[1725651781356,8.0104,124.84,124.81,1.6016403]
[1725651781671,8.0109,124.83,124.79,20.0324]
[1725651782532,8.0116,124.82,124.77,8.0146]
[1725651782731,40.0393,124.88,124.73,28.0599]
[1725651782956,8.0142,124.78,124.74,1.6024912]
[1725651783358,20.0282,124.83,124.74,1.6024912]
[1725651783658,20.0,124.82,124.74,1.6024912]
[1725651784158,20.0,124.82,124.75,8.0159]
[1725651784357,20.0,124.82,124.76,1.60230391]
[1725651784568,20.0,124.82,124.77,1.6022528]
[1725651786944,20.0,124.82,124.76,45.0]
[1725651787364,20.0,124.82,124.77,1.60229443]
[1725651788563,28.0117,124.82,124.77,1.60229443]
[1725651788745,20.0,124.82,124.77,1.60229443]
[1725651788945,40.0393,124.88,124.77,1.60229443]
[1725651788946,8.0128,124.8,124.77,1.60216561]
[1725651789149,8.0128,124.8,124.76,54.61759617]
[1725651790082,8.0128,124.8,124.76,45.0]
[1725651790251,8.0128,124.8,124.76,46.6023211]
[1725651790674,8.0108,124.84,124.77,1.60231885]
[1725651791182,40.0393,124.88,124.76,45.0]
[1725651791480,40.0393,124.88,124.74,1.60215741]
[1725651791656,8.0149,124.77,124.72,20.0437]
[1725651791859,56.26,124.88,124.73,1.60270979]
[1725651792064,8.0136,124.79,124.74,21.64321841]
[1725651792363,65.0,124.87,124.74,21.64321841]
[1725651792364,8.0147,124.77,124.74,21.64321841]
[1725651792764,8.0143,124.78,124.74,20.0407]
[1725651792977,8.0116,124.82,124.75,1.60266669]
[1725651793285,8.0111,124.83,124.78,20.0344]
[1725651793454,8.0111,124.83,124.79,1.60200956]
[1725651793659,8.0104,124.84,124.8,1.60186441]
[1725651794179,8.0109,124.83,124.79,1.60188229]
[1725651795303,8.0109,124.83,124.8,1.60201769]
[1725651795981,8.0109,124.83,124.74,68.79070613]
[1725651795982,90.1364,124.58,124.33,10.0]
[1725651796184,1e-08,124.48,124.37,50.2023]
[1725651796360,1e-08,124.48,124.47,10.0]
[1725651796775,1e-08,124.48,124.47,11.60588728]
[1725651796977,1e-08,124.48,124.47,11.60567389]
[1725651797372,1e-08,124.48,124.47,61.60567389]
[1725651797568,1e-08,124.48,124.47,11.60567389]
[1725651797762,1e-08,124.48,124.47,61.60567389]
[1725651798064,1e-08,124.48,124.47,11.60567389]
[1725651798256,1e-08,124.48,124.47,10.0]
[1725651798964,20.0618,124.67,124.57,10.0]
[1725651799160,8.0251,124.61,124.57,10.0]
[1725651799374,8.0259,124.6,124.57,10.0]
[1725651799574,20.0536,124.67,124.57,10.0]
[1725651799771,8.0251,124.61,124.57,10.0]
[1725651800165,8.0277,124.57,124.53,10.0]
[1725651800380,8.0277,124.57,124.51,10.0]
[1725651800564,28.0283,124.56,124.51,10.0]
[1725651800776,8.029,124.55,124.51,10.0]
[1725651800964,20.0,124.56,124.53,10.0]
[1725651801568,20.0,124.56,124.5,9.63769499]
[1725651801569,28.0285,124.56,124.51,10.0]
[1725651801781,8.0289,124.55,124.51,10.0]
[1725651801985,8.031,124.52,124.49,10.0]
[1725651802174,8.031,124.52,124.47,10.0]
[1725651802490,8.0322,124.5,124.45,10.0]
[1725651802703,20.0,124.51,124.47,10.0]
[1725651802867,21.60201769,124.56,124.47,10.0]
[1725651803068,8.0315,124.51,124.47,10.0]
[1725651803369,20.0,124.56,124.47,10.0]
[1725651803574,20.0,124.56,124.45,9.64150424]
[1725651803575,1.60201769,124.56,124.45,10.0]
[1725651803765,8.0329,124.49,124.45,10.0]
[1725651803961,20.073,124.55,124.41,10.0]
[1725651803962,1.60201769,124.48,124.41,10.0]
[1725651804191,20.0778,124.52,124.39,10.0]
[1725651804374,21.60201769,124.54,124.39,10.0]
[1725651804375,8.0367,124.43,124.39,10.0]
[1725651805474,8.0373,124.42,124.37,10.0]
[1725651805992,8.0373,124.42,124.39,10.0]
[1725651806368,8.0373,124.42,124.37,10.0]
[1725651806768,7.72411769,124.48,124.37,10.0]
[1725651806964,7.72411769,124.48,124.33,18.043]
[1725651806965,8.0398,124.38,124.33,18.043]
[1725651807188,20.0919,124.43,124.27,91.8414264]
[1725651807189,1.60201769,124.42,124.35,10.0]
[1725651807396,21.60201769,124.42,124.33,10.0]
[1725651807693,20.0964,124.4,124.31,10.0]
[1725651807895,8.0411,124.36,124.33,10.0]
[1725651809784,8.0411,124.36,124.28,20.1144]
[1725651809785,8.042,124.35,124.31,10.0]
[1725651810379,8.0409,124.37,124.33,10.0]
[1725651810702,20.0,124.36,124.33,10.0]
[1725651811189,8.0398,124.39,124.35,10.0]
[1725651811373,20.0913,124.44,124.35,10.0]
[1725651811574,20.0,124.43,124.35,10.0]
[1725651811774,8.0394,124.39,124.35,10.0]
[1725651812091,6.1221,124.48,124.36,1.6079881]
[1725651812092,26.2069,124.48,124.36,1.6079881]
[1725651812294,8.0369,124.43,124.37,18.0403]
[1725651812495,26.2069,124.48,124.37,19.64787463]
[1725651812699,41.77521769,124.47,124.37,19.64787463]
[1725651813078,40.1732,124.47,124.38,1.60759045]
[1725651813282,40.1732,124.47,124.39,10.0]
[1725651813592,8.0372,124.43,124.39,10.0]
[1725651813789,8.0377,124.42,124.37,18.0404]
[1725651813996,20.0886,124.45,124.37,10.0]
[1725651814175,21.69061769,124.45,124.37,10.0]
[1725651814375,21.69061769,124.45,124.35,30.1031]
[1725651814797,8.0397,124.39,124.34,8.0423]
[1725651814975,20.0,124.38,124.33,10.0]
[1725651815174,20.0,124.38,124.35,10.0]
[1725651815577,8.0399,124.38,124.35,10.0]
[1725651815774,8.0399,124.38,124.35,11.60799801]
[1725651816084,8.0399,124.38,124.35,10.0]
[1725651816299,8.0389,124.4,124.35,10.0]
[1725651816475,20.0,124.39,124.35,10.0]
[1725651816673,20.0,124.39,124.37,18.0399]
[1725651816987,20.0912,124.44,124.35,10.0]
[1725651817174,21.60201769,124.43,124.33,10.0]
[1725651817375,8.0404,124.38,124.33,18.0424]
[1725651817583,8.0404,124.38,124.35,10.0]
[1725651818077,8.0393,124.39,124.35,10.0]
[1725651818296,20.0,124.38,124.35,10.0]
[1725651818607,8.0393,124.39,124.35,18.0418]
[1725651818777,20.0,124.43,124.36,8.0409]
[1725651818973,20.0,124.43,124.37,10.0]
[1725651819277,8.0368,124.43,124.39,10.0]
[1725651819691,20.0808,124.5,124.41,10.0]
[1725651819895,20.0808,124.5,124.41,11.60711446]
[1725651820095,8.0353,124.45,124.41,11.60711446]
[1725651820408,8.0353,124.45,124.41,10.0]
[1725651821306,8.036,124.44,124.39,10.0]
[1725651821601,1.60201769,124.5,124.39,10.0]
[1725651821602,8.0367,124.43,124.39,10.0]
[1725651821903,8.0358,124.45,124.41,10.0]
[1725651822201,20.0,124.44,124.4,8.0383]
[1725651822985,20.0,124.44,124.39,10.0]
[1725651823183,21.60201769,124.47,124.39,10.0]
[1725651823387,20.0,124.47,124.39,10.0]
[1725651823586,8.0368,124.43,124.39,10.0]
[1725651823789,8.0368,124.43,124.39,11.60744627]
[1725651824199,8.0368,124.43,124.39,10.0]
[1725651825487,8.0368,124.43,124.39,18.0391]
[1725651825689,20.0,124.47,124.41,10.0]
[1725651825908,8.0358,124.45,124.41,10.0]
[1725651826102,28.0362,124.44,124.41,10.0]
[1725651826613,8.0366,124.43,124.41,10.0]
[1725651827112,28.0361,124.44,124.41,10.0]
[1725651827483,8.0367,124.43,124.41,10.0]
[1725651827699,28.0361,124.44,124.41,10.0]
[1725651828105,1.60201769,124.5,124.43,10.0]
[1725651828406,1.39559755,124.51,124.45,10.0]
[1725651828614,8.0328,124.49,124.45,19.6415056]
[1725651828919,1.39488775,124.54,124.5,8.0319]
[1725651829203,260.3,124.57,124.51,10.0]
[1725651829408,26.5877,124.6,124.51,10.0]
[1725651829409,8.0294,124.55,124.51,10.0]
[1725651830393,29.58426432,124.6,124.51,10.0]
[1725651831224,8.0282,124.56,124.53,10.0]
[1725651831588,8.0282,124.56,124.51,18.0309]
[1725651831908,20.0,124.55,124.51,18.0309]
[1725651832085,8.0282,124.56,124.51,18.0309]
[1725651832512,8.0289,124.55,124.51,18.0309]
[1725651832714,8.0283,124.56,124.51,18.0309]
[1725651833305,8.0283,124.56,124.53,10.0]
[1725651833713,21.45944663,124.6,124.53,10.0]
[1725651835118,20.0,124.59,124.53,10.0]
[1725651835420,8.029,124.55,124.51,10.0]
[1725651835601,8.0284,124.56,124.51,18.0314]
[1725651837020,20.0679,124.58,124.51,10.0]
[1725651837196,8.0303,124.53,124.51,10.0]
[1725651837405,8.0289,124.55,124.53,10.0]
[1725651837615,8.0284,124.56,124.53,10.0]
[1725651838632,8.0278,124.57,124.53,10.0]
[1725651838831,8.0271,124.58,124.55,10.0]
[1725651839199,8.0277,124.57,124.55,10.0]
[1725651839521,20.0666,124.59,124.53,10.0]
[1725651839710,20.0666,124.59,124.51,10.0]
[1725651839910,21.66861769,124.59,124.51,10.0]
[1725651840104,8.03,124.54,124.51,10.0]
[1725651840303,20.0701,124.57,124.51,10.0]
[1725651840622,20.0,124.58,124.49,10.0]
[1725651840623,8.032,124.51,124.49,10.0]
[1725651840829,1.60201769,124.54,124.49,10.0]
[1725651841006,21.60201769,124.54,124.49,10.0]
[1725651841207,8.0309,124.52,124.49,10.0]
[1725651841413,20.0,124.54,124.47,10.0]
[1725651841607,21.60201769,124.54,124.45,10.0]
[1725651841798,40.1465,124.55,124.47,10.0]
[1725651842002,8.0326,124.5,124.47,10.0]
[1725651842306,8.0329,124.49,124.47,10.0]
[1725651842515,20.0,124.54,124.49,10.0]
[1725651842710,310.3,124.66,124.44,16.1953]
[1725651842711,8.0283,124.56,124.53,10.0]
[1725651843012,1.60201769,124.64,124.53,18.0299]
[1725651843013,8.0276,124.57,124.53,18.0299]
[1725651843222,8.0288,124.56,124.53,10.0]
[1725651843404,8.0277,124.57,124.53,18.0301]
[1725651843733,8.0276,124.57,124.55,10.0]
[1725651844108,8.0289,124.55,124.52,10.0]
[1725651844305,2.99636316,124.62,124.52,10.0]
[1725651844306,8.0301,124.53,124.52,10.0]
[1725651844527,8.0296,124.54,124.52,10.0]
[1725651844817,8.0296,124.54,124.47,40.1679]
[1725651844818,20.0725,124.55,124.49,10.0]
[1725651845022,21.60201769,124.54,124.47,10.0]
[1725651845225,8.0315,124.51,124.47,10.0]
[1725651845606,8.0322,124.5,124.47,10.0]
[1725651845810,21.60201769,124.54,124.44,10.0]
[1725651845811,8.0345,124.47,124.44,10.0]
[1725651846604,8.0355,124.45,124.42,10.0]
[1725651846917,1.60201769,124.5,124.44,10.0]
[1725651846918,20.0,124.5,124.44,10.0]
[1725651847123,8.0335,124.48,124.44,18.0359]
[1725651847617,8.0335,124.48,124.44,10.0]
[1725651848705,28.0323,124.5,124.47,10.0]
[1725651849125,20.0,124.5,124.47,10.0]
[1725651850040,21.60201769,124.5,124.45,10.0]
[1725651850338,8.0335,124.48,124.45,10.0]
[1725651850707,8.0325,124.5,124.47,10.0]
[1725651852014,1.60201769,124.5,124.45,10.0]
[1725651852337,1.60201769,124.5,124.39,40.1937]
[1725651852338,8.0348,124.46,124.43,10.0]
[1725651852526,8.0342,124.47,124.45,10.0]
[1725651852727,8.0336,124.48,124.45,10.0]
[1725651853121,20.0,124.51,124.45,10.0]
[1725651853319,8.0319,124.51,124.47,10.0]
[1725651853535,20.0,124.5,124.47,10.0]
[1725651853837,8.031,124.52,124.49,10.0]
[1725651854342,8.0329,124.49,124.46,10.0]
[1725651854718,8.0323,124.5,124.46,18.0346]
[1725651854924,8.032,124.51,124.48,10.0]
[1725651855118,20.0,124.5,124.48,10.0]
[1725651855330,28.0324,124.5,124.45,18.0351]
[1725651855740,8.0329,124.49,124.45,18.0351]
[1725651856036,28.0323,124.5,124.47,10.0]
[1725651856834,20.0,124.5,124.44,10.0]
[1725651857142,8.0355,124.45,124.42,10.0]
[1725651857351,80.2448,124.5,124.42,10.0]
[1725651857352,20.0841,124.48,124.42,10.0]
[1725651857514,8.0366,124.43,124.39,30.0976]
[1725651857715,8.0366,124.43,124.39,18.0392]
[1725651857946,20.0,124.44,124.39,18.0392]
[1725651858118,28.0364,124.44,124.39,18.0392]
[1725651858519,28.0364,124.44,124.41,10.0]
[1725651858743,8.0366,124.43,124.41,10.0]
[1725651859039,20.0,124.44,124.41,10.0]
[1725651859244,20.0,124.47,124.41,10.0]
[1725651859420,1.60201769,124.46,124.41,10.0]
[1725651859622,1.60201769,124.45,124.41,10.0]
[1725651860445,8.0362,124.44,124.41,10.0]
[1725651861318,21.39628154,124.47,124.41,10.0]
[1725651861947,8.0371,124.43,124.39,10.0]
[1725651862624,8.036,124.44,124.41,10.0]
[1725651862830,20.0,124.43,124.41,10.0]
[1725651863240,8.0355,124.45,124.41,10.0]
[1725651863455,20.0,124.44,124.41,10.0]
[1725651864048,20.0,124.44,124.41,18.0376]
[1725651864255,20.0,124.45,124.43,10.0]
[1725651864548,8.0335,124.48,124.45,10.0]
[1725651866140,8.0329,124.49,124.45,10.0]
[1725651866443,8.0322,124.5,124.48,10.0]
[1725651866854,8.0327,124.49,124.48,10.0]
[1725651868345,28.0327,124.49,124.48,10.0]
[1725651871340,20.0,124.49,124.43,10.0]
[1725651871545,2.99754419,124.53,124.43,10.0]
[1725651872050,22.99754419,124.53,124.43,10.0]
[1725651872361,45.0,124.52,124.41,10.0]
[1725651872562,1.60201769,124.51,124.39,10.0]
[1725651872763,45.81201769,124.51,124.39,10.0]
[1725651873055,45.0,124.5,124.38,8.0397]
[1725651873260,21.60201769,124.49,124.38,8.0397]
[1725651873437,46.60201769,124.48,124.4,10.0]
[1725651873634,20.0,124.47,124.4,10.0]
[1725651873857,46.60201769,124.46,124.37,18.0404]
[1725651874049,46.60201769,124.46,124.39,10.0]
[1725651874050,20.0,124.45,124.39,10.0]
[1725651874367,20.0,124.45,124.37,8.0404]
[1725651874368,21.60201769,124.45,124.37,10.0]
[1725651874546,45.0,124.44,124.37,10.0]
[1725651874748,20.0,124.43,124.37,10.0]
[1725651875341,8.038,124.41,124.37,10.0]
[1725651876046,8.0373,124.42,124.39,10.0]
[1725651876850,8.0381,124.41,124.39,10.0]
[1725651877048,8.0387,124.4,124.37,10.0]
[1725651877253,8.0381,124.41,124.37,10.0]
[1725651877754,8.0381,124.41,124.39,10.0]
[1725651877957,8.0375,124.42,124.39,10.0]
[1725651878139,20.0,124.41,124.39,10.0]
[1725651878336,28.0385,124.41,124.37,10.0]
[1725651878739,8.0387,124.4,124.37,10.0]
[1725651878949,8.0392,124.39,124.37,10.0]
[1725651879153,8.0387,124.4,124.37,10.0]
[1725651879944,20.0,124.41,124.39,10.0]
[1725651880152,20.0878,124.46,124.41,10.0]
[1725651880672,8.0364,124.44,124.41,10.0]
[1725651881348,8.0366,124.43,124.41,10.0]
[1725651881547,1.60201769,124.48,124.43,10.0]
[1725651881745,26.6267,124.49,124.43,10.0]
[1725651881944,20.0827,124.49,124.43,10.0]
[1725651882242,8.035,124.46,124.43,10.0]
[1725651882859,20.0827,124.49,124.43,18.0362]
[1725651883070,20.0,124.48,124.45,10.0]
[1725651883469,47.6799265,124.53,124.45,10.0]
[1725651883470,9.12944419,124.53,124.45,10.0]
[1725651883654,9.12944419,124.53,124.47,10.0]
[1725651883655,7.5274265,124.53,124.47,10.0]
[1725651883849,1.3955265,124.53,124.47,10.0]
[1725651884181,1.60201769,124.52,124.4,10.0]
[1725651884467,1.60201769,124.51,124.4,10.0]
[1725651885374,6.1319,124.5,124.4,10.0]
[1725651885576,66.60201769,124.49,124.4,30.0954]
[1725651885781,66.60201769,124.49,124.44,10.0]
[1725651885782,20.0,124.49,124.44,10.0]
[1725651885959,6.1319,124.52,124.44,10.0]
[1725651885960,20.0,124.51,124.44,10.0]
[1725651886156,21.60201769,124.51,124.44,10.0]
[1725651886364,20.0,124.51,124.44,10.0]
[1725651886565,21.60201769,124.51,124.44,10.0]
[1725651886769,8.036,124.44,124.42,10.0]
[1725651887281,8.0355,124.45,124.42,10.0]
[1725651887983,21.68501769,124.49,124.4,8.0384]
[1725651887984,1.60201769,124.48,124.4,10.0]
[1725651888181,8.0365,124.44,124.42,10.0]
[1725651888784,8.0371,124.43,124.39,30.0976]
[1725651888959,21.60201769,124.48,124.39,10.0]
[1725651888960,8.0381,124.41,124.39,10.0]
[1725651889367,8.0374,124.42,124.39,10.0]
[1725651890678,8.0368,124.43,124.39,10.0]
[1725651890877,20.0,124.42,124.39,10.0]